bitfinex/quotes_SOLUSD_20230112
["timestamp","ask_amount","ask_price","bid_price","bid_amount"]
[1673492948997,20.0,16.509,16.497,109.2812]
[1673492949337,20.0,16.512,16.498,22.38]
[1673492949652,20.0,16.515,16.498,22.38]
[1673492949960,45.43,16.514,16.499,20.0]
[1673492950174,20.0,16.513,16.499,20.0]
[1673492950490,45.42,16.519,16.5,26.01]
[1673492950699,25.24,16.52,16.502,20.0]
[1673492950907,45.42,16.519,16.503,22.37]
[1673492952278,45.42,16.519,16.504,0.96]
[1673492952486,44.38496728,16.52,16.503,22.37]
[1673492952704,65.42,16.519,16.504,20.0]
[1673492954673,65.42,16.519,16.502,42.19]
[1673492954880,17.0,16.518,16.502,42.19]
[1673492955105,45.42,16.517,16.502,20.0]
[1673492955314,17.0,16.516,16.502,20.0]
[1673492955730,17.0,16.517,16.502,20.0]
[1673492956904,39.14496728,16.516,16.501,22.22]
[1673492957104,62.43,16.515,16.498,42.22]
[1673492957324,17.0,16.515,16.498,42.22]
[1673492957850,104.57496728,16.514,16.496,22.29]
[1673492958036,17.0,16.513,16.495,159.2692]
[1673492958246,65.44,16.512,16.495,159.2692]
[1673492958471,17.0,16.511,16.495,159.2692]
[1673492958685,20.0,16.51,16.495,159.2692]
[1673492958895,17.0,16.509,16.495,139.2692]
[1673492959109,45.45,16.508,16.492,42.3]
[1673492959297,14.7937616,16.507,16.492,20.0]
[1673492960793,14.7937616,16.507,16.491,20.0]
[1673492961004,45.45,16.506,16.491,20.0]
[1673492961418,17.0,16.505,16.491,20.0]
[1673492962137,20.0,16.504,16.489,22.47]
[1673492962341,17.0,16.503,16.489,22.47]
[1673492962549,20.0,16.502,16.489,22.47]
[1673492962764,17.0,16.501,16.489,22.47]
[1673492962970,17.0,16.501,16.488,116.8421]
[1673492962971,20.0,16.5,16.488,116.8421]
[1673492963187,17.0,16.499,16.488,116.8421]
[1673492964680,62.47,16.499,16.488,116.8421]
[1673492966876,62.47,16.499,16.485,117.9729]
[1673492967191,20.0,16.498,16.485,117.9729]
[1673492967405,62.48,16.497,16.485,117.9729]
[1673492967591,20.0,16.496,16.485,117.9729]
[1673492967807,62.48,16.495,16.485,117.9729]
[1673492968441,17.0,16.495,16.48,20.0]
[1673492968646,17.0,16.496,16.481,20.0]
[1673492968868,45.48,16.495,16.481,20.0]
[1673492969089,17.0,16.494,16.481,20.0]
[1673492969720,20.0,16.493,16.48,114.2057]
[1673492969907,17.0,16.492,16.48,114.2057]
[1673492970126,17.5,16.491,16.48,114.2057]
[1673492970335,17.0,16.49,16.48,114.2057]
[1673492970548,17.0,16.49,16.481,20.0]
[1673492970754,45.48,16.495,16.482,0.96]
[1673492971089,45.47,16.499,16.482,24.62]
[1673492971307,25.27,16.5,16.483,20.0]
[1673492971494,25.27,16.5,16.484,22.7]
[1673492972233,37.0,16.499,16.484,22.7]
[1673492972962,20.0,16.499,16.485,0.96]
[1673492973171,20.0,16.503,16.486,23.56]
[1673492973381,20.0,16.503,16.487,20.96]
[1673492973608,20.0,16.503,16.488,22.59]
[1673492974330,17.0,16.502,16.488,22.59]
[1673492974554,20.0,16.501,16.488,22.59]
[1673492974770,17.0,16.5,16.488,22.59]
[1673492975289,20.0,16.499,16.488,22.59]
[1673492975499,17.0,16.498,16.488,22.59]
[1673492975713,19.14496728,16.505,16.489,20.0]
[1673492975901,45.45,16.509,16.49,24.43]
[1673492976232,45.45,16.509,16.491,20.0]
[1673492976449,45.45,16.509,16.493,20.0]
[1673492976648,45.45,16.509,16.494,116.1855]
[1673492977278,17.0,16.508,16.494,116.1855]
[1673492977488,17.0,16.508,16.495,20.0]
[1673492982741,17.0,16.509,16.495,20.0]
[1673492984214,17.0,16.509,16.496,1.92]
[1673492984641,17.0,16.509,16.497,116.4015]
[1673492984846,17.0,16.509,16.498,20.0]
[1673492986013,17.0,16.509,16.499,22.36]
[1673492988204,17.0,16.509,16.495,20.0]
[1673492988408,45.45,16.508,16.495,20.0]
[1673492988624,17.0,16.507,16.495,20.0]
[1673492989263,17.0,16.507,16.497,20.0]
[1673492989475,45.43,16.514,16.498,22.29]
[1673492989686,40.48160438,16.515,16.499,21.92]
[1673492989903,45.42,16.518,16.5,22.29]
[1673492990221,45.42,16.518,16.501,20.0]
[1673492990442,45.42,16.518,16.501,40.0]
[1673492990957,17.0,16.517,16.501,20.0]
[1673492991145,65.43,16.516,16.499,20.0]
[1673492991360,17.0,16.515,16.5,22.24]
[1673492991693,17.0,16.515,16.502,20.0]
[1673492993368,45.42,16.518,16.502,20.0]
[1673492995993,17.0,16.517,16.502,20.0]
[1673492997365,45.43,16.516,16.502,20.0]
[1673492997567,17.0,16.515,16.502,20.0]
[1673492998825,17.0,16.515,16.501,152.025]
[1673492999561,17.0,16.515,16.501,129.785]
[1673492999775,45.43,16.514,16.499,22.24]
[1673492999976,37.0,16.513,16.498,42.25]
[1673493000188,37.0,16.513,16.498,20.0]
[1673493000621,45.44,16.512,16.497,134.8253]
[1673493000839,37.0,16.511,16.497,134.8253]
[1673493001447,95.31520175,16.511,16.497,134.8253]
[1673493002306,95.31520175,16.511,16.497,114.8253]
[1673493003869,16.61,16.51,16.497,114.8253]
[1673493004080,37.0,16.509,16.497,114.8253]
[1673493004718,78.31520175,16.509,16.5,16.7]
[1673493004926,51.24995917,16.517,16.501,22.33]
[1673493005246,157.0516,16.529,16.502,20.0]
[1673493005475,31.24995917,16.528,16.503,22.02]
[1673493005772,163.0641,16.533,16.51,16.7]
[1673493005994,163.0641,16.533,16.511,155.615]
[1673493006706,20.0,16.532,16.512,40.10496728]
[1673493007023,20.0,16.532,16.513,22.0]
[1673493007438,20.0,16.532,16.514,20.0]
[1673493007649,20.0,16.532,16.515,22.26]
[1673493008925,16.7,16.53,16.515,22.26]
[1673493009140,20.0,16.529,16.515,22.26]
[1673493010085,84.53496728,16.529,16.5,16.79]
[1673493010286,16.7,16.52,16.501,131.0757]
[1673493010617,37.0,16.519,16.501,131.0757]
[1673493010802,37.0,16.519,16.502,25.91]
[1673493011016,37.0,16.519,16.503,20.0]
[1673493011230,37.0,16.519,16.505,26.89]
[1673493012724,37.0,16.519,16.506,20.0]
[1673493012908,37.0,16.519,16.506,134.177]
[1673493013429,20.0,16.519,16.507,20.10496728]
[1673493013644,20.0,16.524,16.508,31.64]
[1673493013853,20.0,16.524,16.509,0.96]
[1673493014064,20.0,16.524,16.509,20.0]
[1673493014281,20.0,16.524,16.51,30.89]
[1673493014500,45.41,16.523,16.509,20.0]
[1673493014703,20.0,16.522,16.509,20.0]
[1673493014908,17.0,16.521,16.509,20.0]
[1673493015126,20.0,16.52,16.509,20.0]
[1673493015325,17.0,16.519,16.509,20.0]
[1673493015534,17.0,16.519,16.506,134.177]
[1673493015956,45.4,16.525,16.508,20.0]
[1673493016176,45.39,16.529,16.51,16.7]
[1673493016393,45.39,16.529,16.511,50.09]
[1673493016703,45.39,16.529,16.512,20.0]
[1673493017336,17.0,16.528,16.512,20.0]
[1673493017653,1.1031656,16.534,16.513,33.18]
[1673493018067,1.1031656,16.534,16.514,20.0]
[1673493018068,21.1031656,16.534,16.514,20.0]
[1673493018264,45.38,16.533,16.514,20.0]
[1673493018471,16.7,16.53,16.513,33.18]
[1673493018694,65.39,16.529,16.507,29.19]
[1673493018914,16.61,16.52,16.505,29.2]
[1673493019101,37.0,16.519,16.505,29.2]
[1673493019960,37.0,16.519,16.505,20.0]
[1673493020805,37.0,16.519,16.504,163.2895]
[1673493021952,37.0,16.519,16.504,137.4295]
[1673493022572,37.0,16.519,16.505,22.16]
[1673493026382,37.0,16.519,16.506,20.0]
[1673493026602,20.0,16.519,16.506,135.6078]
[1673493027312,20.0,16.519,16.507,27.99]
[1673493027943,17.0,16.518,16.506,163.0878]
[1673493028380,20.0,16.519,16.506,20.0]
[1673493028591,20.0,16.519,16.507,19.14496728]
[1673493028802,20.0,16.519,16.509,20.0]
[1673493028992,45.4,16.526,16.509,20.0]
[1673493029207,83.52,16.53,16.509,20.0]
[1673493029208,45.4,16.527,16.511,20.0]
[1673493029415,45.39,16.529,16.512,27.69]
[1673493029644,16.72,16.53,16.512,27.69]
[1673493029854,45.39,16.529,16.512,27.69]
[1673493030047,45.39,16.529,16.512,140.1888]
[1673493030504,17.0,16.527,16.512,140.1888]
[1673493030682,112.51895535,16.527,16.508,32.94]
[1673493030892,70.11895535,16.526,16.506,148.1995]
[1673493031105,62.4,16.525,16.506,148.1995]
[1673493031426,16.68,16.52,16.505,146.8266]
[1673493031627,65.42,16.519,16.501,30.55]
[1673493031951,65.42,16.519,16.501,20.0]
[1673493031952,17.0,16.518,16.501,20.0]
[1673493032166,45.42,16.517,16.501,20.0]
[1673493032482,17.0,16.516,16.501,20.0]
[1673493032670,45.43,16.515,16.501,20.0]
[1673493032879,17.0,16.514,16.501,20.0]
[1673493034460,17.0,16.514,16.5,143.7566]
[1673493034674,17.0,16.514,16.499,28.46]
[1673493034675,16.68,16.51,16.499,28.46]
[1673493034887,37.0,16.509,16.494,141.2841]
[1673493035093,37.0,16.509,16.495,20.0]
[1673493035314,37.0,16.509,16.496,26.85]
[1673493035864,37.0,16.509,16.494,140.1441]
[1673493036172,82.45,16.509,16.494,113.8041]
[1673493037534,37.0,16.509,16.494,113.8041]
[1673493037945,82.45,16.509,16.494,113.8041]
[1673493038802,20.0,16.508,16.494,113.8041]
[1673493039008,62.45,16.507,16.49,22.43]
[1673493039329,62.45,16.507,16.49,137.9719]
[1673493039743,20.0,16.506,16.49,20.0]
[1673493039937,83.5,16.5,16.482,22.44]
[1673493040154,83.5,16.5,16.482,137.172]
[1673493040155,65.47,16.499,16.482,137.172]
[1673493040356,82.47,16.499,16.482,114.732]
[1673493040569,82.47,16.499,16.482,133.87696728]
[1673493040783,82.47,16.499,16.483,20.0]
[1673493042564,82.47,16.499,16.484,19.14496728]
[1673493042794,82.47,16.499,16.483,20.0]
[1673493043850,82.47,16.499,16.482,114.732]
[1673493044476,19.14496728,16.506,16.483,19.14496728]
[1673493044688,124.81,16.51,16.483,19.14496728]
[1673493044689,24.84,16.51,16.485,20.0]
[1673493045006,24.84,16.51,16.486,25.97]
[1673493045193,24.84,16.51,16.487,20.0]
[1673493045406,24.84,16.51,16.488,30.52]
[1673493045614,20.0,16.509,16.489,20.0]
[1673493045825,20.0,16.509,16.49,30.13]
[1673493046263,20.0,16.509,16.491,138.1716]
[1673493046454,20.0,16.509,16.492,31.28]
[1673493046665,17.0,16.508,16.492,31.28]
[1673493048679,396.1,16.513,16.493,39.14496728]
[1673493048990,45.43,16.516,16.494,54.62]
[1673493049186,45.43,16.516,16.495,20.0]
[1673493049404,45.43,16.516,16.496,54.88]
[1673493049615,45.43,16.516,16.497,20.0]
[1673493049825,45.43,16.516,16.499,20.0]
[1673493050148,45.42,16.519,16.5,39.14496728]
[1673493050477,45.42,16.519,16.5,151.79376728]
[1673493050681,45.42,16.519,16.501,39.14496728]
[1673493050906,17.0,16.518,16.501,39.14496728]
[1673493051088,45.42,16.517,16.501,39.14496728]
[1673493051297,17.0,16.516,16.501,39.14496728]
[1673493051509,45.43,16.515,16.501,39.14496728]
[1673493051727,17.0,16.514,16.501,39.14496728]
[1673493054351,17.0,16.514,16.501,19.14496728]
[1673493054879,45.43,16.513,16.497,116.1025]
[1673493055075,45.43,16.513,16.48,120.36]
[1673493055076,24.95,16.51,16.495,116.2973]
[1673493055296,24.95,16.51,16.493,28.32]
[1673493055297,20.0,16.509,16.493,28.32]
[1673493055498,37.0,16.509,16.491,20.0]
[1673493055713,37.0,16.509,16.492,26.64]
[1673493056049,82.45,16.509,16.492,26.64]
[1673493056357,82.45,16.509,16.493,20.0]
[1673493056756,82.45,16.509,16.494,30.47]
[1673493056980,37.0,16.509,16.495,20.0]
[1673493058023,20.0,16.509,16.495,20.0]
[1673493058359,20.0,16.513,16.496,1.92]
[1673493058547,80.48,16.519,16.496,1.92]
[1673493058548,45.44,16.512,16.497,20.0]
[1673493058758,80.48,16.519,16.498,20.0]
[1673493058759,45.43,16.513,16.498,20.0]
[1673493058974,45.42,16.518,16.499,20.0]
[1673493059178,45.42,16.518,16.5,20.0]
[1673493059393,45.42,16.518,16.501,20.0]
[1673493059710,64.56496728,16.518,16.501,20.0]
[1673493059921,64.56496728,16.518,16.5,20.0]
[1673493060129,20.0,16.516,16.5,20.0]
[1673493060343,62.43,16.515,16.5,20.0]
[1673493061182,62.43,16.515,16.501,20.0]
[1673493061601,45.43,16.515,16.501,20.0]
[1673493061911,45.42,16.518,16.501,20.0]
[1673493062875,17.0,16.517,16.501,20.0]
[1673493063080,45.43,16.516,16.501,20.0]
[1673493063280,17.0,16.515,16.501,20.0]
[1673493063490,45.43,16.514,16.501,20.0]
[1673493063696,17.0,16.513,16.5,20.0]
[1673493067397,45.42,16.518,16.5,20.0]
[1673493067622,45.42,16.519,16.5,20.0]
[1673493068669,45.42,16.519,16.5,53.05]
[1673493068865,20.0,16.517,16.5,53.05]
[1673493069075,62.43,16.516,16.5,20.0]
[1673493069818,17.0,16.516,16.5,20.0]
[1673493070040,17.0,16.516,16.5,55.09]
[1673493071829,17.0,16.516,16.5,20.0]
[1673493072350,20.0,16.514,16.5,20.0]
[1673493072677,20.0,16.514,16.498,113.4644]
[1673493072678,62.43,16.513,16.501,20.0]
[1673493072858,62.43,16.513,16.499,20.0]
[1673493073920,20.0,16.511,16.498,113.4644]
[1673493074135,37.0,16.51,16.498,113.4644]
[1673493074350,20.0,16.51,16.499,20.0]
[1673493074752,20.0,16.518,16.499,20.0]
[1673493074962,45.42,16.517,16.499,20.0]
[1673493075280,20.0,16.516,16.499,20.0]
[1673493075480,45.43,16.515,16.499,20.0]
[1673493075690,20.0,16.514,16.499,20.0]
[1673493076121,65.42,16.517,16.499,20.0]
[1673493076344,65.42,16.517,16.5,1.92]
[1673493076542,65.42,16.517,16.499,20.0]
[1673493076965,20.0,16.516,16.498,113.4644]
[1673493077174,45.43,16.515,16.498,113.4644]
[1673493077393,37.0,16.514,16.498,113.4644]
[1673493077584,45.43,16.513,16.498,113.4644]
[1673493077795,37.0,16.512,16.498,113.4644]
[1673493078022,37.0,16.512,16.499,20.0]
[1673493079709,37.0,16.512,16.497,108.6704]
[1673493079710,45.44,16.511,16.491,50.41]
[1673493079903,61.95,16.51,16.492,114.8616]
[1673493080111,61.95,16.51,16.493,20.0]
[1673493080331,45.45,16.509,16.493,20.0]
[1673493080542,17.0,16.508,16.493,20.0]
[1673493081088,17.0,16.508,16.492,145.1816]
[1673493082868,17.0,16.508,16.493,20.0]
[1673493083089,17.0,16.509,16.494,24.0]
[1673493083607,17.0,16.509,16.493,44.26]
[1673493083809,17.0,16.509,16.493,24.26]
[1673493084022,20.0,16.508,16.493,24.26]
[1673493084220,17.0,16.507,16.493,24.26]
[1673493084654,17.0,16.507,16.493,44.26]
[1673493085500,17.0,16.507,16.493,24.26]
[1673493086026,17.0,16.508,16.493,24.26]
[1673493086867,44.95,16.51,16.493,24.26]
[1673493087076,20.0,16.51,16.494,20.0]
[1673493087391,20.0,16.513,16.495,23.96]
[1673493087591,65.43,16.514,16.495,23.96]
[1673493088021,20.0,16.513,16.495,23.96]
[1673493088234,17.0,16.512,16.495,23.96]
[1673493088425,20.0,16.51,16.495,23.96]
[1673493088640,17.0,16.509,16.495,23.96]
[1673493088855,17.0,16.51,16.495,23.96]
[1673493089054,20.0,16.509,16.495,23.96]
[1673493089265,17.0,16.508,16.495,23.96]
[1673493090343,17.0,16.508,16.494,30.79]
[1673493094627,17.0,16.508,16.493,31.38]
[1673493096752,17.0,16.508,16.492,114.8616]
[1673493096956,17.0,16.508,16.493,29.86]
[1673493101672,20.0,16.509,16.493,29.86]
[1673493102008,20.0,16.509,16.494,20.0]
[1673493102202,20.0,16.511,16.495,28.68]
[1673493102726,20.0,16.512,16.495,28.68]
[1673493103771,20.0,16.512,16.496,0.96]
[1673493103977,20.0,16.512,16.497,29.45]
[1673493104187,20.0,16.514,16.495,29.46]
[1673493104408,45.43,16.513,16.495,29.46]
[1673493104619,20.0,16.512,16.495,29.46]
[1673493105240,17.0,16.511,16.495,29.46]
[1673493105460,20.0,16.51,16.495,29.46]
[1673493105668,17.0,16.509,16.495,29.46]
[1673493107686,17.0,16.509,16.493,52.02]
[1673493113872,17.0,16.509,16.493,32.02]
[1673493115227,17.0,16.509,16.493,52.02]
[1673493117954,17.0,16.509,16.494,20.0]
[1673493118164,17.0,16.509,16.495,22.39]
[1673493119133,20.0,16.51,16.495,22.39]
[1673493119317,20.0,16.513,16.495,22.39]
[1673493119529,20.0,16.514,16.495,22.39]
[1673493119845,20.0,16.513,16.495,21.39]
[1673493120057,20.0,16.514,16.496,20.0]
[1673493120373,20.0,16.514,16.497,23.21]
[1673493120580,45.43,16.515,16.498,40.0]
[1673493120796,20.0,16.527,16.5,83.31]
[1673493121008,113.717,16.524,16.502,20.0]
[1673493121218,113.717,16.524,16.503,24.06]
[1673493121432,45.41,16.523,16.504,20.96]
[1673493121645,45.41,16.523,16.505,27.01]
[1673493122177,16.7,16.52,16.505,27.01]
[1673493122576,16.7,16.52,16.5,16.64]
[1673493122577,45.42,16.519,16.501,27.95]
[1673493123324,17.0,16.518,16.502,20.0]
[1673493123530,16.7,16.52,16.503,29.53]
[1673493123747,20.0,16.519,16.503,29.53]
[1673493124687,20.0,16.519,16.504,21.92]
[1673493124897,20.0,16.519,16.505,29.51]
[1673493125330,20.0,16.519,16.506,1.92]
[1673493125545,20.0,16.519,16.505,29.51]
[1673493125740,20.0,16.522,16.505,29.51]
[1673493125951,20.0,16.522,16.506,1.92]
[1673493126376,17.0,16.521,16.506,1.92]
[1673493126705,20.0,16.52,16.506,1.92]
[1673493126905,17.0,16.519,16.506,1.92]
[1673493129230,17.0,16.519,16.506,21.92]
[1673493130575,17.0,16.519,16.51,16.67]
[1673493130988,20.0,16.52,16.51,16.67]
[1673493131214,45.4,16.527,16.511,20.0]
[1673493131406,45.38,16.531,16.512,46.4]
[1673493131838,45.38,16.532,16.513,40.10496728]
[1673493132056,44.38,16.533,16.514,46.39]
[1673493132259,44.38,16.533,16.52,16.67]
[1673493132478,1.1031656,16.534,16.521,20.0]
[1673493132679,1.1031656,16.534,16.521,133.8949]
[1673493133002,1.1031656,16.534,16.522,20.0]
[1673493133221,1.1031656,16.534,16.523,0.96]
[1673493133420,1.1031656,16.534,16.524,45.4]
[1673493133623,1.1031656,16.534,16.525,20.0]
[1673493134987,1.1031656,16.534,16.524,65.4]
[1673493135196,1.1031656,16.534,16.523,45.41]
[1673493135412,1.1031656,16.534,16.522,65.41]
[1673493136371,1.1031656,16.534,16.523,0.96]
[1673493136579,1.1031656,16.534,16.524,44.14]
[1673493136789,1.1031656,16.534,16.525,20.96]
[1673493137189,1.1031656,16.534,16.525,20.0]
[1673493138549,1.1031656,16.534,16.525,39.14496728]
[1673493138788,1.1031656,16.534,16.526,0.96]
[1673493138992,65.35,16.544,16.527,20.0]
[1673493139208,65.35,16.544,16.528,1.92]
[1673493140334,17.0,16.543,16.527,39.14496728]
[1673493140548,65.35,16.542,16.527,39.14496728]
[1673493140760,17.0,16.541,16.528,1.92]
[1673493140971,17.0,16.541,16.528,21.92]
[1673493141191,17.0,16.541,16.53,20.0]
[1673493141397,15.39398668,16.541,16.531,20.0]
[1673493142022,45.34,16.547,16.531,20.0]
[1673493142252,45.34,16.548,16.531,20.0]
[1673493143630,17.0,16.547,16.531,20.0]
[1673493143818,45.34,16.546,16.531,20.0]
[1673493144032,45.34,16.548,16.53,20.0]
[1673493144258,83.28,16.54,16.525,38.42456464]
[1673493144451,16.68,16.53,16.52,20.0]
[1673493144669,65.39,16.529,16.512,113.8468]
[1673493144872,161.14577682,16.529,16.512,155.8568]
[1673493145109,84.53496728,16.529,16.512,155.8568]
[1673493145301,17.0,16.528,16.512,113.8468]
[1673493145504,45.4,16.527,16.512,113.8468]
[1673493145717,17.0,16.526,16.512,113.8468]
[1673493146355,17.0,16.527,16.512,113.8468]
[1673493147222,20.0,16.525,16.512,113.8468]
[1673493147422,62.4,16.524,16.512,113.8468]
[1673493148038,62.4,16.524,16.507,34.74]
[1673493148264,16.7,16.52,16.506,110.9755]
[1673493148473,82.42,16.519,16.503,20.0]
[1673493149825,82.42,16.519,16.502,112.2865]
[1673493150357,20.0,16.518,16.502,112.2865]
[1673493150567,62.42,16.517,16.502,112.2865]
[1673493151194,62.42,16.517,16.503,20.0]
[1673493151624,17.0,16.517,16.503,20.0]
[1673493153299,17.0,16.518,16.503,20.0]
[1673493154471,45.42,16.517,16.503,20.0]
[1673493154666,17.0,16.516,16.503,20.0]
[1673493154874,65.42,16.519,16.503,20.0]
[1673493155090,20.0,16.519,16.503,45.92]
[1673493155299,20.0,16.519,16.503,20.0]
[1673493155300,65.42,16.519,16.503,20.0]
[1673493156241,17.0,16.518,16.503,20.0]
[1673493156452,45.42,16.517,16.503,20.0]
[1673493156663,17.0,16.516,16.503,20.0]
[1673493157308,17.0,16.517,16.503,20.0]
[1673493158139,45.42,16.518,16.503,20.0]
[1673493158560,45.42,16.518,16.503,48.08]
[1673493159304,65.42,16.519,16.504,1.92]
[1673493159512,20.0,16.519,16.504,1.92]
[1673493159728,20.0,16.522,16.505,28.53]
[1673493159934,20.0,16.525,16.506,21.92]
[1673493160127,45.4,16.524,16.506,21.92]
[1673493160339,45.4,16.525,16.506,21.92]
[1673493160565,20.0,16.524,16.506,53.06]
[1673493160884,20.0,16.524,16.506,70.28496728]
[1673493160885,45.41,16.523,16.506,70.28496728]
[1673493161091,20.0,16.522,16.507,1.92]
[1673493161706,20.0,16.526,16.507,1.92]
[1673493161919,45.4,16.525,16.507,1.92]
[1673493162128,37.0,16.524,16.507,1.92]
[1673493162351,45.41,16.523,16.507,1.92]
[1673493162557,16.68,16.52,16.506,20.0]
[1673493162761,65.42,16.519,16.503,20.0]
[1673493162972,17.0,16.518,16.503,20.0]
[1673493163189,45.42,16.517,16.503,20.0]
[1673493163392,17.0,16.516,16.503,20.0]
[1673493163825,17.0,16.517,16.503,20.0]
[1673493165933,17.0,16.517,16.504,1.92]
[1673493166554,17.0,16.517,16.503,20.0]
[1673493169829,45.43,16.516,16.503,20.0]
[1673493170026,17.0,16.515,16.503,20.0]
[1673493170229,17.0,16.517,16.503,20.0]
[1673493171499,17.0,16.517,16.502,132.2865]
[1673493172028,17.0,16.517,16.503,20.0]
[1673493172764,17.0,16.517,16.502,112.2865]
[1673493172957,45.43,16.516,16.502,112.2865]
[1673493173168,17.0,16.515,16.502,112.2865]
[1673493174023,17.0,16.515,16.503,20.0]
[1673493175477,17.0,16.515,16.502,112.2865]
[1673493175690,17.0,16.515,16.501,20.0]
[1673493177267,17.0,16.515,16.5,20.0]
[1673493177589,16.7,16.51,16.497,20.0]
[1673493177794,37.0,16.509,16.497,20.0]
[1673493178211,37.0,16.509,16.498,22.28]
[1673493178429,37.0,16.509,16.497,20.0]
[1673493179700,16.7,16.51,16.497,20.0]
[1673493179914,396.1,16.518,16.498,44.36496728]
[1673493180130,45.42,16.517,16.499,40.0]
[1673493180320,45.42,16.517,16.5,138.7746]
[1673493180531,45.42,16.517,16.501,20.0]
[1673493180737,396.1,16.518,16.502,20.96]
[1673493180962,396.1,16.518,16.502,47.2]
[1673493181593,396.1,16.518,16.502,46.24]
[1673493181918,62.42,16.517,16.502,46.24]
[1673493182317,62.42,16.517,16.502,20.0]
[1673493183377,17.0,16.517,16.502,20.0]
[1673493183710,83.42,16.52,16.501,40.0]
[1673493183711,45.43,16.516,16.501,40.0]
[1673493183920,17.0,16.515,16.501,40.0]
[1673493184535,17.0,16.516,16.501,40.0]
[1673493184747,45.43,16.515,16.501,20.0]
[1673493184963,17.0,16.514,16.501,20.0]
[1673493185501,17.0,16.514,16.501,40.0]
[1673493187182,17.0,16.514,16.501,20.0]
[1673493187702,17.0,16.515,16.501,20.0]
[1673493190118,20.0,16.514,16.501,20.0]
[1673493190308,16.7,16.51,16.497,116.9945]
[1673493190515,17.0,16.509,16.497,116.9945]
[1673493191783,17.0,16.509,16.495,20.0]
[1673493192004,17.0,16.509,16.494,119.3921]
[1673493192637,62.45,16.509,16.494,119.3921]
[1673493193041,17.0,16.509,16.495,20.0]
[1673493193478,17.0,16.509,16.495,42.37]
[1673493197160,17.0,16.509,16.495,22.37]